[Event "44th Chess Olympiad Women 2022"]
[Site "Chennai"]
[Date "2022.08.06"]
[Round "8.57"]
[White "Lohani, Sujana"]
[Black "Ollet, Myra"]
[Result "1-0"]
[WhiteElo "1697"]
[BlackElo "1480"]
[Annotator "NA RC"]
[PlyCount "174"]
[EventDate "2022.??.??"]
[TimeControl "60"]

1. d4 {[%emt 0:00:05]} d6 {[%emt 0:00:16]} 2. Nf3 {[%emt 0:00:08]} Nf6 {
[%emt 0:00:19]} 3. c4 {[%emt 0:00:14]} c6 {[%emt 0:00:30]} 4. Nc3 {[%emt 0:00:
00]} Nbd7 {[%emt 0:00:50]} 5. e4 {[%emt 0:02:58]} Qc7 {[%emt 0:01:11]} 6. Be2 {
[%emt 0:02:14]} e5 {[%emt 0:00:40]} 7. O-O {[%emt 0:01:31]} Be7 {[%emt 0:00:27]
} 8. h3 {[%emt 0:10:06]} b6 {[%emt 0:00:43]} 9. d5 {[%emt 0:02:07]} Bb7 {
[%emt 0:00:38]} 10. Be3 {[%emt 0:04:14]} a6 {[%emt 0:01:29]} 11. Nd2 {[%emt 0:
00:00]} c5 {[%emt 0:02:28]} 12. a3 {[%emt 0:03:00]} h6 {[%emt 0:00:51]} 13. f4
{[%emt 0:03:52]} g6 {[%emt 0:01:57]} 14. Qa4 {[%emt 0:05:09]} Kd8 {[%emt 0:00:
00]} 15. Nf3 {[%emt 0:02:23]} b5 {[%emt 0:15:37]} 16. cxb5 {[%emt 0:02:09]}
axb5 {[%emt 0:00:25]} 17. Qxb5 {[%emt 0:00:32]} Ba6 {[%emt 0:00:10]} 18. Qa4 {
[%emt 0:00:14]} Nb6 {[%emt 0:00:26]} 19. Qc2 {[%emt 0:00:31]} Bxe2 {[%emt 0:00:
00]} 20. Qxe2 {[%emt 0:00:06]} Nh5 {[%emt 0:00:20]} 21. Qe1 {[%emt 0:07:52]}
exf4 {[%emt 0:00:48]} 22. Bf2 {[%emt 0:02:55]} f6 {[%emt 0:00:33]} 23. Nh4 {
[%emt 0:06:22]} g5 {[%emt 0:03:29]} 24. Nf5 {[%emt 0:00:31]} Rh7 {[%emt 0:00:
00]} 25. Nb5 {[%emt 0:10:39]} Qb8 {[%emt 0:02:31]} 26. Qe2 {[%emt 0:00:23]} Ng7
{[%emt 0:00:35]} 27. Nxe7 {[%emt 0:01:53]} Kxe7 {[%emt 0:00:58]} 28. g3 {
[%emt 0:02:46]} Qc8 {[%emt 0:01:36]} 29. Kh2 {[%emt 0:00:55]} Nd7 {[%emt 0:00:
00]} 30. gxf4 {[%emt 0:01:17]} gxf4 {[%emt 0:01:47]} 31. Bh4 {[%emt 0:01:55]}
Ne8 {[%emt 0:08:02]} 32. Rxf4 {[%emt 0:00:58]} Ne5 {[%emt 0:10:11]} 33. Raf1 {
[%emt 0:01:18]} Rf7 {[%emt 0:03:20]} 34. R4f2 {[%emt 0:01:09]} c4 {[%emt 0:00:
00]} 35. Nd4 {[%emt 0:01:13]} c3 {[%emt 0:02:04]} 36. bxc3 {[%emt 0:03:02]}
Qxc3 {[%emt 0:00:18]} 37. Nc2 {[%emt 0:04:01]} Ra4 {[%emt 0:00:46]} 38. Bg3 {
[%emt 0:01:12]} Rg7 {[%emt 0:00:44]} 39. Bf4 {[%emt 0:03:49]} Nd3 {[%emt 0:00:
00]} 40. Qe3 {[%emt 0:05:47]} Rc4 {[%emt 0:02:03]} 41. Re2 {[%emt 0:31:38]}
Nxf4 {[%emt 0:34:19]} 42. Qxc3 {[%emt 0:06:01]} Rxc3 {[%emt 0:00:00]} 43. Rxf4
{[%emt 0:00:00]} Rgg3 {[%emt 0:00:00]} 44. Rh4 {[%emt 0:00:00]} Rg6 {[%emt 0:
00:00]} 45. Rd2 {[%emt 0:00:00]} Nc7 {[%emt 0:00:00]} 46. a4 {[%emt 0:00:00]}
Rc4 {[%emt 0:00:00]} 47. a5 {[%emt 0:00:00]} Nb5 {[%emt 0:00:00]} 48. Ne3 {
[%emt 0:00:00]} Ra4 {[%emt 0:00:00]} 49. Nf5+ {[%emt 0:00:00]} Kd7 {[%emt 0:00:
00]} 50. Rxh6 {[%emt 0:00:00]} Rxh6 {[%emt 0:00:00]} 51. Nxh6 {[%emt 0:00:00]}
Rxa5 {[%emt 0:00:00]} 52. Ng8 {[%emt 0:00:00]} Nc3 {[%emt 0:00:00]} 53. Nxf6+ {
[%emt 0:00:00]} Ke7 {[%emt 0:00:00]} 54. Ng4 {[%emt 0:00:00]} Ra4 {[%emt 0:00:
00]} 55. e5 {[%emt 0:00:00]} Ne4 {[%emt 0:00:00]} 56. Rd3 {[%emt 0:00:00]} Ra2+
{[%emt 0:00:00]} 57. Kg1 {[%emt 0:00:00]} dxe5 {[%emt 0:00:00]} 58. Nxe5 {
[%emt 0:00:00]} Nd6 {[%emt 0:00:18]} 59. Ng4 {[%emt 0:00:13]} Nf5 {[%emt 0:00:
00]} 60. Kf1 {[%emt 0:01:53]} Kd6 {[%emt 0:00:55]} 61. Nf2 {[%emt 0:00:52]} Ke5
{[%emt 0:03:56]} 62. Kg2 {[%emt 0:00:43]} Ra5 {[%emt 0:02:58]} 63. Ng4+ {
[%emt 0:00:40]} Kd6 {[%emt 0:00:33]} 64. Nf6 {[%emt 0:01:19]} Ra2+ {[%emt 0:00:
00]} 65. Kf3 {[%emt 0:00:25]} Nh4+ {[%emt 0:00:27]} 66. Kg4 {[%emt 0:00:27]}
Ng6 {[%emt 0:00:21]} 67. Kf5 {[%emt 0:00:46]} Ne7+ {[%emt 0:00:33]} 68. Kf4 {
[%emt 0:00:32]} Ra4+ {[%emt 0:00:32]} 69. Ne4+ {[%emt 0:00:14]} Kd7 {[%emt 0:
00:00]} 70. Ke5 {[%emt 0:00:26]} Ng6+ {[%emt 0:00:29]} 71. Kf6 {[%emt 0:00:28]}
Ra6+ {[%emt 0:00:19]} 72. Kg5 {[%emt 0:00:20]} Kd8 {[%emt 0:01:34]} 73. h4 {
[%emt 0:01:13]} Ne5 {[%emt 0:00:46]} 74. Rb3 {[%emt 0:00:54]} Nf7+ {[%emt 0:00:
00]} 75. Kf4 {[%emt 0:00:33]} Ra4 {[%emt 0:01:04]} 76. Kf5 {[%emt 0:00:23]}
Nh6+ {[%emt 0:00:34]} 77. Kf4 {[%emt 0:00:35]} Nf7 {[%emt 0:01:58]} 78. h5 {
[%emt 0:00:35]} Nd6 {[%emt 0:00:42]} 79. Re3 {[%emt 0:00:14]} Ke7 {[%emt 0:00:
00]} 80. Kf3 {[%emt 0:00:26]} Kd7 {[%emt 0:05:50]} 81. Nc5+ {[%emt 0:00:03]}
Kc7 {[%emt 0:00:12]} 82. Nxa4 {[%emt 0:00:07]} Nf5 {[%emt 0:00:12]} 83. Re6 {
[%emt 0:00:19]} Nd4+ {[%emt 0:00:24]} 84. Kg4 {[%emt 0:00:07]} Nxe6 {[%emt 0:
00:00]} 85. dxe6 {[%emt 0:00:05]} Kd6 {[%emt 0:00:09]} 86. h6 {[%emt 0:00:41]}
Kxe6 {[%emt 0:00:06]} 87. h7 {[%emt 0:00:08]} Kd5 {[%emt 0:00:11]} 1-0

[Event "44th Chess Olympiad Women 2022"]
[Site "Chennai"]
[Date "2022.08.06"]
[Round "8.57"]
[White "Nacario, Ruth"]
[Black "Kapali, Binita"]
[Result "0-1"]
[WhiteElo "1552"]
[BlackElo "1511"]
[Annotator "NA RC"]
[PlyCount "82"]
[EventDate "2022.??.??"]
[TimeControl "60"]

1. d4 {[%emt 0:00:30]} d5 {[%emt 0:00:29]} 2. c4 {[%emt 0:00:26]} dxc4 {
[%emt 0:09:55]} 3. e4 {[%emt 0:00:21]} Nf6 {[%emt 0:01:02]} 4. Nc3 {[%emt 0:00:
00]} Nc6 {[%emt 0:02:08]} 5. Be3 {[%emt 0:03:22]} Ng4 {[%emt 0:02:23]} 6. Nf3 {
[%emt 0:01:36]} Nxe3 {[%emt 0:00:19]} 7. fxe3 {[%emt 0:00:13]} e6 {[%emt 0:00:
00]} 8. Bxc4 {[%emt 0:01:12]} Be7 {[%emt 0:05:30]} 9. d5 {[%emt 0:07:46]} exd5
{[%emt 0:03:00]} 10. exd5 {[%emt 0:01:44]} Nb8 {[%emt 0:00:26]} 11. Qa4+ {
[%emt 0:08:52]} Nd7 {[%emt 0:01:23]} 12. Qc2 {[%emt 0:13:35]} O-O {[%emt 0:00:
00]} 13. O-O-O {[%emt 0:02:23]} Nc5 {[%emt 0:03:10]} 14. h4 {[%emt 0:03:34]} a6
{[%emt 0:00:58]} 15. Ng5 {[%emt 0:04:21]} g6 {[%emt 0:04:29]} 16. Nf3 {[%emt 0:
00:00]} b5 {[%emt 0:02:09]} 17. Bd3 {[%emt 0:01:10]} Nxd3+ {[%emt 0:01:05]} 18.
Qxd3 {[%emt 0:00:25]} Bf6 {[%emt 0:00:47]} 19. h5 {[%emt 0:01:39]} Qe7 {
[%emt 0:13:35]} 20. hxg6 {[%emt 0:07:42]} fxg6 {[%emt 0:00:25]} 21. Rdf1 {
[%emt 0:07:01]} Re8 {[%emt 0:04:19]} 22. Nd1 {[%emt 0:02:44]} Bf5 {[%emt 0:00:
00]} 23. Qb3 {[%emt 0:03:29]} Kg7 {[%emt 0:03:34]} 24. Re1 {[%emt 0:01:37]}
Rad8 {[%emt 0:00:49]} 25. Nc3 {[%emt 0:03:46]} Qc5 {[%emt 0:01:35]} 26. Kd2 {
[%emt 0:00:58]} c6 {[%emt 0:03:00]} 27. e4 {[%emt 0:01:57]} Bg4 {[%emt 0:06:44]
} 28. e5 {[%emt 0:01:38]} Be7 {[%emt 0:01:25]} 29. Rhf1 {[%emt 0:04:36]} cxd5 {
[%emt 0:01:46]} 30. e6 {[%emt 0:01:36]} Bf6 {[%emt 0:03:16]} 31. Ne5 {[%emt 0:
00:00]} Bxe6 {[%emt 0:02:28]} 32. Nd3 {[%emt 0:03:01]} Qc4 {[%emt 0:00:57]} 33.
Qd1 {[%emt 0:01:46]} Bg5+ {[%emt 0:01:23]} 34. Kc2 {[%emt 0:00:04]} d4 {
[%emt 0:01:13]} 35. Ne5 {[%emt 0:00:55]} Bf5+ {[%emt 0:00:22]} 36. Nd3 {
[%emt 0:00:54]} dxc3 {[%emt 0:00:29]} 37. bxc3 {[%emt 0:00:03]} Bxd3+ {[%emt 0:
00:00]} 38. Kb2 {[%emt 0:00:32]} Bxf1 {[%emt 0:01:49]} 39. Rxf1 {[%emt 0:00:56]
} Rxd1 {[%emt 0:00:09]} 40. Rxd1 {[%emt 0:00:16]} Re2+ {[%emt 0:00:08]} 41. Ka1
{[%emt 0:30:26]} Qxa2# {[%emt 0:30:06]} 0-1

[Event "44th Chess Olympiad Women 2022"]
[Site "Chennai"]
[Date "2022.08.06"]
[Round "8.58"]
[White "Raharimanana, Faratiana"]
[Black "Ibtihal Mohammed"]
[Result "1-0"]
[WhiteElo "1707"]
[BlackElo "1445"]
[Annotator "NA RC"]
[PlyCount "111"]
[EventDate "2022.??.??"]
[TimeControl "60"]

1. e4 {[%emt 0:00:07]} c5 {[%emt 0:00:28]} 2. Nf3 {[%emt 0:00:09]} Nc6 {
[%emt 0:00:06]} 3. d4 {[%emt 0:01:46]} cxd4 {[%emt 0:00:07]} 4. Nxd4 {[%emt 0:
00:00]} g6 {[%emt 0:00:05]} 5. Bc4 {[%emt 0:00:48]} Bg7 {[%emt 0:00:09]} 6. c3
{[%emt 0:00:55]} Nf6 {[%emt 0:01:04]} 7. Nd2 {[%emt 0:02:39]} O-O {[%emt 0:00:
00]} 8. O-O {[%emt 0:00:12]} Nxd4 {[%emt 0:02:21]} 9. cxd4 {[%emt 0:00:44]}
Nxe4 {[%emt 0:00:25]} 10. Bxf7+ {[%emt 0:01:07]} Rxf7 {[%emt 0:00:16]} 11. Nxe4
{[%emt 0:00:11]} Qb6 {[%emt 0:01:50]} 12. Nc5 {[%emt 0:02:09]} d6 {[%emt 0:00:
00]} 13. Nb3 {[%emt 0:00:13]} Be6 {[%emt 0:03:14]} 14. d5 {[%emt 0:11:44]} Bd7
{[%emt 0:09:37]} 15. Be3 {[%emt 0:01:30]} Qb4 {[%emt 0:12:19]} 16. Bd4 {
[%emt 0:29:08]} Bxd4 {[%emt 0:16:51]} 17. Qxd4 {[%emt 0:00:37]} Qxd4 {[%emt 0:
00:00]} 18. Nxd4 {[%emt 0:00:41]} Rc8 {[%emt 0:00:43]} 19. Rac1 {[%emt 0:00:32]
} Rff8 {[%emt 0:03:34]} 20. f3 {[%emt 0:01:50]} Rc5 {[%emt 0:01:56]} 21. Rxc5 {
[%emt 0:06:27]} dxc5 {[%emt 0:04:36]} 22. Nc2 {[%emt 0:01:17]} Rf6 {[%emt 0:00:
00]} 23. Ne3 {[%emt 0:06:10]} Ra6 {[%emt 0:01:27]} 24. a3 {[%emt 0:04:54]} Kf7
{[%emt 0:01:49]} 25. Rd1 {[%emt 0:00:56]} Rb6 {[%emt 0:02:40]} 26. Rd2 {
[%emt 0:00:32]} Rb3 {[%emt 0:02:50]} 27. Kf2 {[%emt 0:01:05]} Bb5 {[%emt 0:00:
00]} 28. Ng4 {[%emt 0:04:57]} Ke8 {[%emt 0:02:36]} 29. Ne5 {[%emt 0:02:50]} a6
{[%emt 0:01:47]} 30. Kg3 {[%emt 0:05:58]} Re3 {[%emt 0:00:27]} 31. Kf4 {
[%emt 0:00:14]} Re2 {[%emt 0:00:32]} 32. Rxe2 {[%emt 0:00:30]} Bxe2 {[%emt 0:
00:00]} 33. h4 {[%emt 0:01:29]} c4 {[%emt 0:02:28]} 34. Ke3 {[%emt 0:00:58]}
Bf1 {[%emt 0:00:36]} 35. Kf2 {[%emt 0:00:45]} Bd3 {[%emt 0:00:07]} 36. Nxd3 {
[%emt 0:00:30]} cxd3 {[%emt 0:00:06]} 37. Ke3 {[%emt 0:00:04]} Kd7 {[%emt 0:00:
00]} 38. Kxd3 {[%emt 0:00:14]} Kd6 {[%emt 0:00:30]} 39. Kd4 {[%emt 0:00:15]} b6
{[%emt 0:00:41]} 40. b4 {[%emt 0:01:02]} h6 {[%emt 0:00:42]} 41. a4 {[%emt 0:
00:00]} a5 {[%emt 0:31:02]} 42. b5 {[%emt 0:00:32]} e5+ {[%emt 0:00:53]} 43.
dxe6 {[%emt 0:00:31]} Kxe6 {[%emt 0:00:20]} 44. g4 {[%emt 0:00:11]} Kd6 {
[%emt 0:00:54]} 45. f4 {[%emt 0:00:15]} Ke6 {[%emt 0:00:25]} 46. h5 {[%emt 0:
00:00]} gxh5 {[%emt 0:00:28]} 47. gxh5 {[%emt 0:00:31]} Kd6 {[%emt 0:00:32]}
48. f5 {[%emt 0:00:21]} Kd7 {[%emt 0:01:16]} 49. Ke5 {[%emt 0:00:23]} Ke7 {
[%emt 0:00:03]} 50. f6+ {[%emt 0:00:19]} Ke8 {[%emt 0:01:34]} 51. Ke6 {[%emt 0:
00:00]} Kf8 {[%emt 0:00:08]} 52. f7 {[%emt 0:00:18]} Kg7 {[%emt 0:00:20]} 53.
Ke7 {[%emt 0:00:22]} Kh7 {[%emt 0:00:06]} 54. f8=R {[%emt 0:00:24]} Kg7 {
[%emt 0:00:40]} 55. Rf6 {[%emt 0:01:26]} Kh7 {[%emt 0:00:14]} 56. Rg6 {[%emt 0:
00:00]} 1-0

[Event "44th Chess Olympiad Women 2022"]
[Site "Chennai"]
[Date "2022.08.06"]
[Round "8.58"]
[White "Rakotoniaina Tiana Johanna"]
[Black "Marwa, Jadalla"]
[Result "1-0"]
[WhiteElo "1529"]
[BlackElo "1316"]
[Annotator "NA RC"]
[PlyCount "95"]
[EventDate "2022.??.??"]
[TimeControl "60"]

1. e4 {[%emt 0:00:08]} c5 {[%emt 0:00:03]} 2. Nf3 {[%emt 0:00:13]} Nc6 {
[%emt 0:00:13]} 3. Bb5 {[%emt 0:00:18]} g6 {[%emt 0:00:35]} 4. O-O {[%emt 0:00:
00]} Bg7 {[%emt 0:00:57]} 5. Re1 {[%emt 0:00:14]} Nf6 {[%emt 0:01:16]} 6. c3 {
[%emt 0:00:16]} O-O {[%emt 0:00:53]} 7. d4 {[%emt 0:00:52]} cxd4 {[%emt 0:00:
00]} 8. cxd4 {[%emt 0:00:12]} d5 {[%emt 0:03:14]} 9. e5 {[%emt 0:06:12]} Ne8 {
[%emt 0:04:09]} 10. h3 {[%emt 0:00:13]} Nc7 {[%emt 0:01:07]} 11. Bf1 {[%emt 0:
00:00]} a6 {[%emt 0:01:07]} 12. Be3 {[%emt 0:02:07]} Nb5 {[%emt 0:08:38]} 13.
a4 {[%emt 0:01:10]} Nc7 {[%emt 0:00:09]} 14. Qd2 {[%emt 0:01:51]} f6 {[%emt 0:
00:00]} 15. Bh6 {[%emt 0:00:44]} fxe5 {[%emt 0:01:14]} 16. Bxg7 {[%emt 0:00:31]
} Kxg7 {[%emt 0:00:05]} 17. Nxe5 {[%emt 0:04:10]} Nxe5 {[%emt 0:00:53]} 18.
dxe5 {[%emt 0:01:34]} b6 {[%emt 0:06:27]} 19. Nc3 {[%emt 0:02:36]} Bb7 {
[%emt 0:00:13]} 20. Ne2 {[%emt 0:03:35]} Ne6 {[%emt 0:01:41]} 21. g4 {[%emt 0:
00:00]} Nc5 {[%emt 0:07:15]} 22. Nd4 {[%emt 0:09:00]} e6 {[%emt 0:01:44]} 23.
b4 {[%emt 0:00:32]} Qe7 {[%emt 0:12:48]} 24. bxc5 {[%emt 0:00:49]} bxc5 {
[%emt 0:00:09]} 25. Ne2 {[%emt 0:00:56]} Qf7 {[%emt 0:05:05]} 26. Ng3 {[%emt 0:
00:00]} Rac8 {[%emt 0:04:57]} 27. Bg2 {[%emt 0:03:05]} a5 {[%emt 0:02:32]} 28.
Ra2 {[%emt 0:01:54]} Qc7 {[%emt 0:03:04]} 29. h4 {[%emt 0:08:03]} Qf7 {[%emt 0:
00:00]} 30. Qg5 {[%emt 0:08:19]} Kh8 {[%emt 0:03:39]} 31. h5 {[%emt 0:06:30]}
Qf4 {[%emt 0:06:37]} 32. Qe7 {[%emt 0:07:21]} Qf7 {[%emt 0:00:11]} 33. Qh4 {
[%emt 0:09:18]} Rg8 {[%emt 0:04:03]} 34. Qf6+ {[%emt 0:01:02]} Qxf6 {[%emt 0:
00:00]} 35. exf6 {[%emt 0:00:05]} Rgf8 {[%emt 0:00:10]} 36. Rxe6 {[%emt 0:00:
00]} Rce8 {[%emt 0:01:29]} 37. Rb6 {[%emt 0:00:38]} Ba8 {[%emt 0:00:35]} 38.
hxg6 {[%emt 0:00:20]} hxg6 {[%emt 0:00:09]} 39. g5 {[%emt 0:00:59]} Re5 {
[%emt 0:02:13]} 40. f4 {[%emt 0:00:21]} Ree8 {[%emt 0:02:31]} 41. Rc2 {[%emt 0:
00:00]} Rc8 {[%emt 0:32:23]} 42. Rb5 {[%emt 0:00:25]} c4 {[%emt 0:00:00]} 43.
Bxd5 {[%emt 0:00:00]} Bxd5 {[%emt 0:00:00]} 44. Rxd5 {[%emt 0:00:00]} c3 {
[%emt 0:00:00]} 45. Rxa5 {[%emt 0:00:00]} Rfe8 {[%emt 0:00:00]} 46. Ra7 {
[%emt 0:00:00]} Rf8 {[%emt 0:00:00]} 47. Rg7 {[%emt 0:00:00]} Rg8 {[%emt 0:00:
00]} 48. Rh2# {[%emt 0:00:00]} 1-0

[Event "44th Chess Olympiad Women 2022"]
[Site "Chennai"]
[Date "2022.08.06"]
[Round "8.58"]
[White "Sara, Gadalla Karar"]
[Black "Razafindratina, Mariam Clarisse"]
[Result "1-0"]
[WhiteElo "1433"]
[BlackElo "1318"]
[Annotator "NA RC"]
[PlyCount "173"]
[EventDate "2022.??.??"]
[TimeControl "60"]

1. Nf3 {[%emt 0:01:11]} Nf6 {[%emt 0:01:12]} 2. d3 {[%emt 0:01:00]} h6 {
[%emt 0:00:57]} 3. e4 {[%emt 0:00:36]} d6 {[%emt 0:00:29]} 4. g3 {[%emt 0:00:
00]} Bg4 {[%emt 0:00:42]} 5. Bg2 {[%emt 0:00:09]} e6 {[%emt 0:00:10]} 6. O-O {
[%emt 0:00:14]} Be7 {[%emt 0:00:05]} 7. c3 {[%emt 0:01:45]} O-O {[%emt 0:00:06]
} 8. Nbd2 {[%emt 0:00:53]} Nbd7 {[%emt 0:00:42]} 9. Re1 {[%emt 0:00:09]} e5 {
[%emt 0:01:20]} 10. h3 {[%emt 0:03:16]} Bh5 {[%emt 0:00:11]} 11. g4 {[%emt 0:
00:00]} Bg6 {[%emt 0:00:35]} 12. Nf1 {[%emt 0:05:02]} Nb6 {[%emt 0:03:31]} 13.
Ng3 {[%emt 0:06:31]} Nh7 {[%emt 0:03:29]} 14. Nf5 {[%emt 0:04:34]} h5 {[%emt 0:
00:00]} 15. Nxe7+ {[%emt 0:02:10]} Qxe7 {[%emt 0:00:21]} 16. g5 {[%emt 0:00:32]
} Rfe8 {[%emt 0:00:52]} 17. h4 {[%emt 0:00:47]} Nf8 {[%emt 0:00:14]} 18. b3 {
[%emt 0:13:43]} Ne6 {[%emt 0:02:43]} 19. d4 {[%emt 0:02:12]} c6 {[%emt 0:03:27]
} 20. dxe5 {[%emt 0:01:28]} Rad8 {[%emt 0:02:02]} 21. exd6 {[%emt 0:01:24]}
Rxd6 {[%emt 0:01:03]} 22. Qc2 {[%emt 0:00:50]} Nc5 {[%emt 0:01:07]} 23. Nd2 {
[%emt 0:04:29]} Qe6 {[%emt 0:03:41]} 24. f3 {[%emt 0:02:58]} Qe5 {[%emt 0:00:
00]} 25. Nf1 {[%emt 0:02:22]} Nd3 {[%emt 0:03:05]} 26. Re3 {[%emt 0:03:36]}
Nxc1 {[%emt 0:00:42]} 27. Rxc1 {[%emt 0:01:15]} Qf4 {[%emt 0:00:17]} 28. Qf2 {
[%emt 0:01:12]} Red8 {[%emt 0:02:13]} 29. Qg3 {[%emt 0:01:06]} Qxg3 {[%emt 0:
00:00]} 30. Nxg3 {[%emt 0:00:06]} Re8 {[%emt 0:02:29]} 31. f4 {[%emt 0:01:52]}
f6 {[%emt 0:04:43]} 32. f5 {[%emt 0:00:59]} Kh7 {[%emt 0:01:17]} 33. fxg6+ {
[%emt 0:00:39]} Kxg6 {[%emt 0:00:14]} 34. gxf6 {[%emt 0:00:22]} Rxf6 {[%emt 0:
00:00]} 35. Rf1 {[%emt 0:01:02]} Rxf1+ {[%emt 0:01:05]} 36. Kxf1 {[%emt 0:00:
00]} Re5 {[%emt 0:00:48]} 37. c4 {[%emt 0:01:22]} Nd7 {[%emt 0:00:35]} 38. Rd3
{[%emt 0:00:20]} Nf6 {[%emt 0:00:16]} 39. Rd6 {[%emt 0:01:55]} Kf7 {[%emt 0:00:
00]} 40. Ke2 {[%emt 0:02:11]} Ke7 {[%emt 0:00:23]} 41. Rd3 {[%emt 0:31:37]} Kf7
{[%emt 0:30:25]} 42. Bf3 {[%emt 0:00:16]} g6 {[%emt 0:00:18]} 43. b4 {[%emt 0:
00:00]} b6 {[%emt 0:00:33]} 44. a4 {[%emt 0:00:19]} a6 {[%emt 0:00:10]} 45. Rd6
{[%emt 0:03:48]} Re6 {[%emt 0:00:16]} 46. Rxe6 {[%emt 0:00:15]} Kxe6 {[%emt 0:
00:00]} 47. Kd3 {[%emt 0:00:28]} Ke5 {[%emt 0:00:38]} 48. Ne2 {[%emt 0:00:26]}
Nd7 {[%emt 0:00:52]} 49. Ke3 {[%emt 0:07:48]} Nb8 {[%emt 0:03:29]} 50. Bg2 {
[%emt 0:01:00]} Nd7 {[%emt 0:00:30]} 51. Bh3 {[%emt 0:00:57]} Nf6 {[%emt 0:00:
00]} 52. Nc3 {[%emt 0:00:15]} Ne8 {[%emt 0:02:50]} 53. Bd7 {[%emt 0:01:46]} Nd6
{[%emt 0:00:12]} 54. Kd3 {[%emt 0:04:25]} c5 {[%emt 0:01:41]} 55. bxc5 {
[%emt 0:00:35]} bxc5 {[%emt 0:00:13]} 56. Nd5 {[%emt 0:00:38]} Nxe4 {[%emt 0:
00:00]} 57. Be8 {[%emt 0:01:49]} g5 {[%emt 0:05:28]} 58. hxg5 {[%emt 0:00:17]}
Nxg5 {[%emt 0:00:24]} 59. Bxh5 {[%emt 0:00:21]} Kd6 {[%emt 0:00:41]} 60. Nf4 {
[%emt 0:03:15]} a5 {[%emt 0:00:40]} 61. Ke3 {[%emt 0:02:09]} Ke5 {[%emt 0:00:
00]} 62. Nd3+ {[%emt 0:01:37]} Kd6 {[%emt 0:00:17]} 63. Nf2 {[%emt 0:02:52]}
Ke5 {[%emt 0:00:19]} 64. Nd1 {[%emt 0:03:50]} Ne6 {[%emt 0:00:25]} 65. Nb2 {
[%emt 0:01:32]} Ng5 {[%emt 0:00:47]} 66. Be8 {[%emt 0:00:35]} Ne6 {[%emt 0:00:
00]} 67. Bb5 {[%emt 0:00:28]} Nc7 {[%emt 0:01:34]} 68. Nd3+ {[%emt 0:00:12]}
Kd6 {[%emt 0:00:26]} 69. Ke4 {[%emt 0:00:54]} Ne6 {[%emt 0:00:27]} 70. Nf4 {
[%emt 0:00:00]} Nc7 {[%emt 0:00:00]} 71. Nd5 {[%emt 0:00:00]} Ne6 {[%emt 0:00:
00]} 72. Nc3 {[%emt 0:00:00]} Nc7 {[%emt 0:00:00]} 73. Na2 {[%emt 0:00:00]} Ne6
{[%emt 0:00:00]} 74. Nc1 {[%emt 0:00:00]} Nd8 {[%emt 0:00:00]} 75. Nb3 {
[%emt 0:00:00]} Nb7 {[%emt 0:00:00]} 76. Ba6 {[%emt 0:00:00]} Nd8 {[%emt 0:00:
00]} 77. Nxa5 {[%emt 0:00:00]} Ne6 {[%emt 0:00:00]} 78. Nb3 {[%emt 0:00:00]}
Ng5+ {[%emt 0:00:00]} 79. Kd3 {[%emt 0:00:00]} Ne6 {[%emt 0:00:00]} 80. Bb5 {
[%emt 0:00:00]} Kc7 {[%emt 0:00:00]} 81. a5 {[%emt 0:00:00]} Kb7 {[%emt 0:00:
00]} 82. Ke4 {[%emt 0:00:00]} Ka7 {[%emt 0:00:00]} 83. Kd5 {[%emt 0:00:00]}
Nc7+ {[%emt 0:00:00]} 84. Kxc5 {[%emt 0:00:00]} Kb7 {[%emt 0:00:00]} 85. Nd4 {
[%emt 0:00:00]} Na6+ {[%emt 0:00:00]} 86. Bxa6+ {[%emt 0:00:00]} Kxa6 {[%emt 0:
00:00]} 87. Kb4 {[%emt 0:00:00]} 1-0

[Event "44th Chess Olympiad Women 2022"]
[Site "Chennai"]
[Date "2022.08.06"]
[Round "8.59"]
[White "Al Aisaee, Anat"]
[Black "Van Wyk, Keisha C"]
[Result "0-1"]
[WhiteElo "1681"]
[BlackElo "1237"]
[Annotator "NA RC"]
[PlyCount "96"]
[EventDate "2022.??.??"]
[TimeControl "60"]

1. e4 {[%emt 0:00:05]} c5 {[%emt 0:00:25]} 2. c4 {[%emt 0:00:10]} Nc6 {[%emt 0:
00:00]} 3. Nf3 {[%emt 0:00:22]} d6 {[%emt 0:00:33]} 4. d4 {[%emt 0:04:02]} cxd4
{[%emt 0:01:52]} 5. Nxd4 {[%emt 0:00:13]} Nf6 {[%emt 0:01:16]} 6. Nc3 {[%emt 0:
00:00]} g6 {[%emt 0:01:23]} 7. Be3 {[%emt 0:01:03]} Bg7 {[%emt 0:01:35]} 8. Be2
{[%emt 0:01:09]} Bd7 {[%emt 0:01:46]} 9. Nc2 {[%emt 0:00:45]} O-O {[%emt 0:00:
00]} 10. O-O {[%emt 0:07:16]} Re8 {[%emt 0:00:23]} 11. Qd2 {[%emt 0:00:53]} Qa5
{[%emt 0:04:57]} 12. a3 {[%emt 0:05:31]} Ng4 {[%emt 0:19:32]} 13. Bxg4 {
[%emt 0:02:30]} Bxg4 {[%emt 0:01:57]} 14. f3 {[%emt 0:01:19]} Be6 {[%emt 0:00:
00]} 15. Nd5 {[%emt 0:03:37]} Qxd2 {[%emt 0:06:47]} 16. Bxd2 {[%emt 0:00:15]}
Rac8 {[%emt 0:00:52]} 17. Rab1 {[%emt 0:01:45]} Nd4 {[%emt 0:03:32]} 18. Nce3 {
[%emt 0:01:02]} Nb3 {[%emt 0:02:09]} 19. Bc3 {[%emt 0:09:19]} Bxc3 {[%emt 0:00:
00]} 20. bxc3 {[%emt 0:00:33]} Nd2 {[%emt 0:04:40]} 21. Rxb7 {[%emt 0:00:36]}
Nxf1 {[%emt 0:00:58]} 22. Kxf1 {[%emt 0:08:34]} Bxd5 {[%emt 0:03:52]} 23. Nxd5
{[%emt 0:00:12]} Kf8 {[%emt 0:01:23]} 24. Nc7 {[%emt 0:04:36]} Red8 {[%emt 0:
00:00]} 25. Nd5 {[%emt 0:00:58]} e6 {[%emt 0:02:45]} 26. Ne3 {[%emt 0:00:19]}
a5 {[%emt 0:00:41]} 27. Ke2 {[%emt 0:08:43]} Rb8 {[%emt 0:04:25]} 28. Ra7 {
[%emt 0:01:30]} Ra8 {[%emt 0:01:36]} 29. Rc7 {[%emt 0:02:10]} Ke8 {[%emt 0:00:
00]} 30. Ng4 {[%emt 0:01:08]} Kf8 {[%emt 0:01:13]} 31. Nh6 {[%emt 0:02:28]} f5
{[%emt 0:09:48]} 32. Nf7 {[%emt 0:04:31]} Rdc8 {[%emt 0:04:03]} 33. Rb7 {
[%emt 0:02:48]} d5 {[%emt 0:01:26]} 34. Nd6 {[%emt 0:01:28]} Rd8 {[%emt 0:00:
00]} 35. e5 {[%emt 0:00:42]} dxc4 {[%emt 0:00:46]} 36. Rxh7 {[%emt 0:01:08]}
Kg8 {[%emt 0:01:33]} 37. Re7 {[%emt 0:00:35]} Rab8 {[%emt 0:01:12]} 38. Nb7 {
[%emt 0:04:56]} Re8 {[%emt 0:00:46]} 39. Rc7 {[%emt 0:00:54]} Kf8 {[%emt 0:00:
00]} 40. Nxa5 {[%emt 0:04:42]} Re7 {[%emt 0:00:47]} 41. Rxe7 {[%emt 0:30:11]}
Rb2+ {[%emt 0:30:11]} 42. Ke3 {[%emt 0:01:18]} Kxe7 {[%emt 0:00:47]} 43. g3 {
[%emt 0:01:20]} Rxh2 {[%emt 0:00:00]} 44. Nxc4 {[%emt 0:00:00]} Rc2 {[%emt 0:
00:00]} 45. Kd4 {[%emt 0:00:00]} Rg2 {[%emt 0:00:00]} 46. a4 {[%emt 0:00:00]}
Kd8 {[%emt 0:00:00]} 47. Kc5 {[%emt 0:07:10]} Kc7 {[%emt 0:00:00]} 48. a5 {
[%emt 0:03:57]} Rxg3 {[%emt 0:00:00]} 0-1